[Event "Titled Tuesday Blitz February 15 Late 2022"]
[White "Dounis, Alexandros"]
[Black "Yushko, Olga"]
[WhiteFideId "4213238"]
[BlackFideId "14114500"]
[WhiteElo "2195"]
[BlackElo "2028"]
[Result "1-0"]
[Round "04"]
[TimeControl "180+1"]
[Date "2022.02.16"]
[WhiteClock "0:00:05"]
[BlackClock "0:00:01"]

1. Nf3 {[%clk 0:02:51]}  e6 {[%clk 0:02:59]} 2. g3 {[%clk 0:02:50]}  f5 {[%clk 0:02:59]} 3. Bg2 {[%clk 0:02:51]}  Nf6 {[%clk 0:03:00]} 4. O-O {[%clk 0:02:51]}  Be7 {[%clk 0:03:01]} 5. d3 {[%clk 0:02:52]}  O-O {[%clk 0:03:01]} 6. Re1 {[%clk 0:02:48]}  d6 {[%clk 0:03:01]} 7. e4 {[%clk 0:02:48]}  e5 {[%clk 0:03:01]} 8. Nc3 {[%clk 0:02:44]}  Nc6 {[%clk 0:03:01]} 9. Bg5 {[%clk 0:02:37]}  Qe8 {[%clk 0:03:00]} 10. Bxf6 {[%clk 0:02:34]}  Bxf6 {[%clk 0:03:00]} 11. d4 {[%clk 0:02:35]}  f4 {[%clk 0:02:57]} 12. dxe5 {[%clk 0:02:30]}  dxe5 {[%clk 0:02:56]} 13. gxf4 {[%clk 0:02:27]}  exf4 {[%clk 0:02:55]} 14. e5 {[%clk 0:02:27]}  Be7 {[%clk 0:02:50]} 15. Nd5 {[%clk 0:02:23]}  Bd8 {[%clk 0:02:50]} 16. e6 {[%clk 0:02:19]}  Bxe6 {[%clk 0:02:40]} 17. Bh3 {[%clk 0:02:09]}  Qg6+ {[%clk 0:02:36]} 18. Kh1 {[%clk 0:02:00]}  Bxh3 {[%clk 0:02:35]} 19. Rg1 {[%clk 0:01:59]}  Bg4 {[%clk 0:02:32]} 20. c3 {[%clk 0:01:40]}  Ne7 {[%clk 0:02:15]} 21. Nb4 {[%clk 0:01:16]}  c6 {[%clk 0:02:11]} 22. Nd3 {[%clk 0:01:16]}  Kh8 {[%clk 0:02:02]} 23. Nde5 {[%clk 0:01:12]}  Bxf3+ {[%clk 0:02:01]} 24. Qxf3 {[%clk 0:01:12]}  Qf6 {[%clk 0:01:57]} 25. Nd7 {[%clk 0:01:08]}  Qf5 {[%clk 0:01:55]} 26. Nxf8 {[%clk 0:01:07]}  Qxf8 {[%clk 0:01:56]} 27. Rae1 {[%clk 0:01:03]}  Bb6 {[%clk 0:01:50]} 28. Re4 {[%clk 0:00:56]}  Ng6 {[%clk 0:01:48]} 29. Rge1 {[%clk 0:00:55]}  Qf7 {[%clk 0:01:34]} 30. R1e2 {[%clk 0:00:48]}  Rf8 {[%clk 0:01:32]} 31. Qg4 {[%clk 0:00:44]}  f3 {[%clk 0:01:27]} 32. Rd2 {[%clk 0:00:42]}  Qxa2 {[%clk 0:01:22]} 33. h4 {[%clk 0:00:41]}  Qb1+ {[%clk 0:01:10]} 34. Kh2 {[%clk 0:00:36]}  Qc1 {[%clk 0:00:58]} 35. Qg5 {[%clk 0:00:24]}  h6 {[%clk 0:00:47]} 36. Qxg6 {[%clk 0:00:19]}  Qxd2 {[%clk 0:00:41]} 37. Rg4 {[%clk 0:00:15]}  Bc7+ {[%clk 0:00:30]} 38. Kh3 {[%clk 0:00:14]}  Be5 {[%clk 0:00:29]} 39. Qe4 {[%clk 0:00:11]}  Qd6 {[%clk 0:00:12]} 40. Rg6 {[%clk 0:00:09]}  Qd7+ {[%clk 0:00:11]} 41. Qg4 {[%clk 0:00:07]}  Qe7 {[%clk 0:00:10]} 42. Re6 {[%clk 0:00:07]}  Qc5 {[%clk 0:00:10]} 43. Qe4 {[%clk 0:00:03]}  Bc7 {[%clk 0:00:08]} 44. Re8 {[%clk 0:00:02]}  Rxe8 {[%clk 0:00:05]} 45. Qxe8+ {[%clk 0:00:03]}  Kh7 {[%clk 0:00:05]} 46. Qe4+ {[%clk 0:00:04]}  Kh8 {[%clk 0:00:05]} 47. Qxf3 {[%clk 0:00:04]}  Qe7 {[%clk 0:00:04]} 48. Qd3 {[%clk 0:00:04]}  Qe6+ {[%clk 0:00:04]} 49. Kg2 {[%clk 0:00:04]}  Qg4+ {[%clk 0:00:04]} 50. Kf1 {[%clk 0:00:04]}  Qxh4 {[%clk 0:00:02]} 51. Qd7 {[%clk 0:00:04]}  Qh1+ {[%clk 0:00:01]} 52. Ke2 {[%clk 0:00:04]}  Qe4+ {[%clk 0:00:02]} 53. Kd2 {[%clk 0:00:05]}  Bf4+ {[%clk 0:00:01]} 54. Kd1 {[%clk 0:00:05]}  Qb1+ {[%clk 0:00:01]} 55. Ke2 {[%clk 0:00:05]} 1-0


[Site "https://www.chess.com"]

[Event "Titled Tuesday Blitz February 15 Late 2022"]
[White "Fedoseev, Vladimir"]
[Black "Jones, Gawain C B"]
[WhiteFideId "24130737"]
[BlackFideId "409561"]
[WhiteElo "2726"]
[BlackElo "2657"]
[Result "1-0"]
[Round "04"]
[TimeControl "180+1"]
[Date "2022.02.15"]
[WhiteClock "0:00:37"]
[BlackClock "0:00:07"]

1. d4 {[%clk 0:03:00]}  Nf6 {[%clk 0:02:59]} 2. Nf3 {[%clk 0:03:01]}  g6 {[%clk 0:02:58]} 3. Bf4 {[%clk 0:03:01]}  Bg7 {[%clk 0:02:58]} 4. c3 {[%clk 0:03:02]}  O-O {[%clk 0:02:58]} 5. h3 {[%clk 0:03:02]}  b6 {[%clk 0:02:58]} 6. Nbd2 {[%clk 0:03:01]}  Bb7 {[%clk 0:02:59]} 7. Qc2 {[%clk 0:03:01]}  d6 {[%clk 0:02:54]} 8. e4 {[%clk 0:03:00]}  Nbd7 {[%clk 0:02:53]} 9. Bc4 {[%clk 0:02:51]}  e5 {[%clk 0:02:43]} 10. dxe5 {[%clk 0:02:49]}  dxe5 {[%clk 0:02:43]} 11. Be3 {[%clk 0:02:48]}  Qe7 {[%clk 0:02:41]} 12. O-O {[%clk 0:02:47]}  Nc5 {[%clk 0:02:40]} 13. Bxc5 {[%clk 0:02:19]}  Qxc5 {[%clk 0:02:40]} 14. b4 {[%clk 0:02:20]}  Qe7 {[%clk 0:02:36]} 15. Rfe1 {[%clk 0:02:20]}  a5 {[%clk 0:02:36]} 16. a3 {[%clk 0:02:13]}  Nh5 {[%clk 0:02:32]} 17. Bd5 {[%clk 0:02:08]}  c6 {[%clk 0:02:30]} 18. Bb3 {[%clk 0:02:07]}  b5 {[%clk 0:02:22]} 19. Nf1 {[%clk 0:01:58]}  Nf4 {[%clk 0:02:20]} 20. Kh2 {[%clk 0:01:55]}  a4 {[%clk 0:02:16]} 21. Ba2 {[%clk 0:01:54]}  Bc8 {[%clk 0:02:17]} 22. Ne3 {[%clk 0:01:50]}  h5 {[%clk 0:02:02]} 23. c4 {[%clk 0:01:47]}  Bd7 {[%clk 0:01:38]} 24. Rad1 {[%clk 0:01:43]}  Rad8 {[%clk 0:01:33]} 25. cxb5 {[%clk 0:01:40]}  cxb5 {[%clk 0:01:33]} 26. Nd5 {[%clk 0:01:41]}  Nxd5 {[%clk 0:01:32]} 27. Bxd5 {[%clk 0:01:37]}  Rc8 {[%clk 0:01:29]} 28. Qd3 {[%clk 0:01:36]}  Rc7 {[%clk 0:01:26]} 29. Qe3 {[%clk 0:01:30]}  Rfc8 {[%clk 0:01:14]} 30. Qb6 {[%clk 0:01:29]}  Kh7 {[%clk 0:01:11]} 31. Bxf7 {[%clk 0:01:19]}  Rc6 {[%clk 0:01:04]} 32. Qxb5 {[%clk 0:01:16]}  R8c7 {[%clk 0:00:22]} 33. Qb8 {[%clk 0:01:03]}  Rc8 {[%clk 0:00:18]} 34. Qa7 {[%clk 0:01:00]}  R8c7 {[%clk 0:00:18]} 35. Qa5 {[%clk 0:00:55]}  Bf6 {[%clk 0:00:12]} 36. Bd5 {[%clk 0:00:51]}  Rc3 {[%clk 0:00:12]} 37. Re3 {[%clk 0:00:47]}  g5 {[%clk 0:00:11]} 38. b5 {[%clk 0:00:38]}  g4 {[%clk 0:00:09]} 39. Rxc3 {[%clk 0:00:37]}  Rxc3 {[%clk 0:00:08]} 40. Qxc3 {[%clk 0:00:38]}  gxf3 {[%clk 0:00:08]} 41. Qxf3 {[%clk 0:00:38]}  Kh6 {[%clk 0:00:07]} 42. b6 {[%clk 0:00:37]} 1-0


[Site "https://www.chess.com"]

[Event "Titled Tuesday Blitz February 15 Late 2022"]
[White "Grave, Jacob Templen"]
[Black "Ezat, Mohamed"]
[WhiteFideId "1542656"]
[BlackFideId "10600906"]
[WhiteElo "1737"]
[BlackElo "2386"]
[Result "0-1"]
[Round "04"]
[TimeControl "180+1"]
[Date "2022.02.16"]
[WhiteClock "0:00:03"]
[BlackClock "0:01:29"]

1. d4 {[%clk 0:02:58]}  Nf6 {[%clk 0:02:59]} 2. c4 {[%clk 0:02:58]}  g6 {[%clk 0:02:58]} 3. Nc3 {[%clk 0:02:56]}  Bg7 {[%clk 0:02:57]} 4. e4 {[%clk 0:02:55]}  d6 {[%clk 0:02:58]} 5. Be2 {[%clk 0:02:54]}  O-O {[%clk 0:02:57]} 6. Be3 {[%clk 0:02:54]}  e5 {[%clk 0:02:55]} 7. d5 {[%clk 0:02:52]}  Na6 {[%clk 0:02:56]} 8. g4 {[%clk 0:02:45]}  Nc5 {[%clk 0:02:55]} 9. f3 {[%clk 0:02:44]}  a5 {[%clk 0:02:53]} 10. Qd2 {[%clk 0:02:34]}  c6 {[%clk 0:02:52]} 11. Rd1 {[%clk 0:02:30]}  cxd5 {[%clk 0:02:51]} 12. Nxd5 {[%clk 0:02:29]}  Ne6 {[%clk 0:02:49]} 13. Nxf6+ {[%clk 0:02:27]}  Qxf6 {[%clk 0:02:49]} 14. Qxd6 {[%clk 0:02:09]}  Rd8 {[%clk 0:02:43]} 15. Qb6 {[%clk 0:02:03]}  Rxd1+ {[%clk 0:02:41]} 16. Bxd1 {[%clk 0:02:02]}  Qe7 {[%clk 0:02:30]} 17. Ne2 {[%clk 0:01:56]}  Ra6 {[%clk 0:02:14]} 18. Qb3 {[%clk 0:01:38]}  Nd4 {[%clk 0:02:12]} 19. Nxd4 {[%clk 0:01:27]}  exd4 {[%clk 0:02:11]} 20. Bf2 {[%clk 0:01:26]}  a4 {[%clk 0:02:08]} 21. Qd3 {[%clk 0:01:22]}  Rb6 {[%clk 0:02:03]} 22. O-O {[%clk 0:01:06]}  Rxb2 {[%clk 0:02:02]} 23. Bxa4 {[%clk 0:01:06]}  Rxa2 {[%clk 0:01:57]} 24. Bb5 {[%clk 0:01:01]}  Ra3 {[%clk 0:01:51]} 25. Qd2 {[%clk 0:00:57]}  Rxf3 {[%clk 0:01:49]} 26. Bg3 {[%clk 0:00:43]}  Rxf1+ {[%clk 0:01:49]} 27. Kxf1 {[%clk 0:00:44]}  Qxe4 {[%clk 0:01:46]} 28. h3 {[%clk 0:00:39]}  Qh1+ {[%clk 0:01:45]} 29. Kf2 {[%clk 0:00:39]}  Qxh3 {[%clk 0:01:45]} 30. Qe2 {[%clk 0:00:32]}  Be6 {[%clk 0:01:43]} 31. Qf3 {[%clk 0:00:26]}  Qxg4 {[%clk 0:01:39]} 32. Qxb7 {[%clk 0:00:25]}  Qf5+ {[%clk 0:01:38]} 33. Kg2 {[%clk 0:00:20]}  h5 {[%clk 0:01:37]} 34. Qb8+ {[%clk 0:00:14]}  Kh7 {[%clk 0:01:36]} 35. Qf4 {[%clk 0:00:02]}  Qxf4 {[%clk 0:01:34]} 36. Bxf4 {[%clk 0:00:03]}  Bh6 {[%clk 0:01:29]} 0-1


[Site "https://www.chess.com"]

[Event "Titled Tuesday Blitz February 15 Late 2022"]
[White "Gubajdullin, Alexei"]
[Black "Todorovic, Bojan"]
[WhiteFideId "4141202"]
[BlackFideId "917087"]
[WhiteElo "2268"]
[BlackElo "2266"]
[Result "1-0"]
[Round "04"]
[TimeControl "180+1"]
[Date "2022.02.16"]
[WhiteClock "0:01:39"]
[BlackClock "0:00:08"]

1. d4 {[%clk 0:03:00]}  g6 {[%clk 0:02:58]} 2. Nf3 {[%clk 0:03:00]}  Bg7 {[%clk 0:02:58]} 3. Bf4 {[%clk 0:02:59]}  d6 {[%clk 0:02:58]} 4. e3 {[%clk 0:02:59]}  Nf6 {[%clk 0:02:51]} 5. Be2 {[%clk 0:02:59]}  O-O {[%clk 0:02:51]} 6. O-O {[%clk 0:02:58]}  Nbd7 {[%clk 0:02:44]} 7. h3 {[%clk 0:02:57]}  b6 {[%clk 0:02:34]} 8. a4 {[%clk 0:02:56]}  a5 {[%clk 0:02:33]} 9. Nc3 {[%clk 0:02:56]}  Bb7 {[%clk 0:02:30]} 10. Bh2 {[%clk 0:02:55]}  Ne4 {[%clk 0:02:24]} 11. Nxe4 {[%clk 0:02:54]}  Bxe4 {[%clk 0:02:24]} 12. Nd2 {[%clk 0:02:54]}  Bb7 {[%clk 0:02:22]} 13. Bf3 {[%clk 0:02:54]}  Qc8 {[%clk 0:02:15]} 14. c3 {[%clk 0:02:51]}  Nf6 {[%clk 0:02:12]} 15. Nc4 {[%clk 0:02:39]}  Bd5 {[%clk 0:01:55]} 16. Bxd5 {[%clk 0:02:37]}  Nxd5 {[%clk 0:01:54]} 17. Qf3 {[%clk 0:02:37]}  e6 {[%clk 0:01:46]} 18. e4 {[%clk 0:02:36]}  Ne7 {[%clk 0:01:45]} 19. Ne3 {[%clk 0:02:33]}  Qb7 {[%clk 0:01:44]} 20. Rfe1 {[%clk 0:02:23]}  Rae8 {[%clk 0:01:37]} 21. Qf4 {[%clk 0:02:16]}  e5 {[%clk 0:01:28]} 22. dxe5 {[%clk 0:02:13]}  Bxe5 {[%clk 0:01:27]} 23. Qh4 {[%clk 0:02:13]}  Bxh2+ {[%clk 0:01:20]} 24. Kxh2 {[%clk 0:02:12]}  f5 {[%clk 0:00:38]} 25. e5 {[%clk 0:02:12]}  dxe5 {[%clk 0:00:28]} 26. Nc4 {[%clk 0:02:11]}  e4 {[%clk 0:00:20]} 27. Rad1 {[%clk 0:02:10]}  Nd5 {[%clk 0:00:16]} 28. Rd4 {[%clk 0:02:04]}  c6 {[%clk 0:00:15]} 29. Red1 {[%clk 0:02:02]}  Qe7 {[%clk 0:00:15]} 30. Qh6 {[%clk 0:01:59]}  Qg7 {[%clk 0:00:13]} 31. Qc1 {[%clk 0:01:56]}  f4 {[%clk 0:00:12]} 32. Nd6 {[%clk 0:01:53]}  Re6 {[%clk 0:00:11]} 33. Nxe4 {[%clk 0:01:52]}  f3 {[%clk 0:00:11]} 34. Ng5 {[%clk 0:01:46]}  Qe5+ {[%clk 0:00:10]} 35. g3 {[%clk 0:01:46]}  Ref6 {[%clk 0:00:10]} 36. Re4 {[%clk 0:01:45]}  Qc7 {[%clk 0:00:09]} 37. Ne6 {[%clk 0:01:42]}  Qe7 {[%clk 0:00:08]} 38. Rde1 {[%clk 0:01:41]}  Re8 {[%clk 0:00:08]} 39. Ng5 {[%clk 0:01:39]} 1-0


[Site "https://www.chess.com"]

[Event "Titled Tuesday Blitz February 15 Late 2022"]
[White "Herrera Reyes, Jose Antonio"]
[Black "Hess, Robert"]
[WhiteFideId "2274914"]
[BlackFideId "2022036"]
[WhiteElo "2361"]
[BlackElo "2557"]
[Result "1-0"]
[Round "04"]
[TimeControl "180+1"]
[Date "2022.02.15"]
[WhiteClock "0:01:17"]
[BlackClock "0:00:03"]

1. Nf3 {[%clk 0:03:00]}  g6 {[%clk 0:03:00]} 2. g3 {[%clk 0:03:00]}  Bg7 {[%clk 0:03:00]} 3. Bg2 {[%clk 0:03:01]}  e6 {[%clk 0:03:00]} 4. d3 {[%clk 0:03:02]}  Ne7 {[%clk 0:03:01]} 5. Nc3 {[%clk 0:03:02]}  d6 {[%clk 0:03:01]} 6. h4 {[%clk 0:03:02]}  h6 {[%clk 0:03:02]} 7. e4 {[%clk 0:03:02]}  Nd7 {[%clk 0:03:01]} 8. Be3 {[%clk 0:03:02]}  a6 {[%clk 0:03:02]} 9. Qd2 {[%clk 0:03:03]}  b5 {[%clk 0:03:02]} 10. d4 {[%clk 0:03:01]}  Bb7 {[%clk 0:03:02]} 11. a3 {[%clk 0:03:00]}  Nb6 {[%clk 0:03:02]} 12. b3 {[%clk 0:02:59]}  c5 {[%clk 0:02:19]} 13. O-O {[%clk 0:02:56]}  b4 {[%clk 0:02:10]} 14. axb4 {[%clk 0:02:54]}  cxb4 {[%clk 0:02:10]} 15. Ne2 {[%clk 0:02:52]}  Bxe4 {[%clk 0:02:10]} 16. Qxb4 {[%clk 0:02:52]}  O-O {[%clk 0:01:41]} 17. c4 {[%clk 0:02:52]}  Nc6 {[%clk 0:01:28]} 18. Qd2 {[%clk 0:02:51]}  Qc7 {[%clk 0:01:08]} 19. Bxh6 {[%clk 0:02:49]}  a5 {[%clk 0:00:58]} 20. Bxg7 {[%clk 0:02:47]}  Kxg7 {[%clk 0:00:59]} 21. Nc3 {[%clk 0:02:47]}  Bf5 {[%clk 0:00:57]} 22. Nb5 {[%clk 0:02:46]}  Qd7 {[%clk 0:00:53]} 23. Qf4 {[%clk 0:02:40]}  d5 {[%clk 0:00:43]} 24. h5 {[%clk 0:02:36]}  Rh8 {[%clk 0:00:38]} 25. hxg6 {[%clk 0:02:34]}  fxg6 {[%clk 0:00:39]} 26. Ne5 {[%clk 0:02:28]}  Nxe5 {[%clk 0:00:38]} 27. Qxe5+ {[%clk 0:02:29]}  Kg8 {[%clk 0:00:27]} 28. Rfc1 {[%clk 0:02:02]}  Qh7 {[%clk 0:00:26]} 29. cxd5 {[%clk 0:02:00]}  Qh2+ {[%clk 0:00:24]} 30. Kf1 {[%clk 0:01:59]}  Bd3+ {[%clk 0:00:25]} 31. Ke1 {[%clk 0:01:59]}  Qxg2 {[%clk 0:00:18]} 32. Qxe6+ {[%clk 0:01:59]}  Kh7 {[%clk 0:00:18]} 33. Rc7+ {[%clk 0:01:56]}  Kh6 {[%clk 0:00:18]} 34. Qe3+ {[%clk 0:01:55]}  Kh5 {[%clk 0:00:14]} 35. Qxd3 {[%clk 0:01:42]}  Rae8+ {[%clk 0:00:14]} 36. Kd1 {[%clk 0:01:35]}  Qg1+ {[%clk 0:00:13]} 37. Kc2 {[%clk 0:01:30]}  Qxf2+ {[%clk 0:00:13]} 38. Kc3 {[%clk 0:01:22]}  Nxd5+ {[%clk 0:00:13]} 39. Kc4 {[%clk 0:01:22]}  Nxc7 {[%clk 0:00:10]} 40. Rh1+ {[%clk 0:01:18]}  Kg5 {[%clk 0:00:06]} 41. Rxh8 {[%clk 0:01:19]}  Rxh8 {[%clk 0:00:05]} 42. Nd6 {[%clk 0:01:17]}  Ne6 {[%clk 0:00:03]} 43. Ne4+ {[%clk 0:01:17]} 1-0


[Site "https://www.chess.com"]

[Event "Titled Tuesday Blitz February 15 Late 2022"]
[White "Indjic, Aleksandar"]
[Black "Xiong, Jeffery"]
[WhiteFideId "911925"]
[BlackFideId "2047640"]
[WhiteElo "2616"]
[BlackElo "2727"]
[Result "0-1"]
[Round "04"]
[TimeControl "180+1"]
[Date "2022.02.15"]
[WhiteClock "0:00:10"]
[BlackClock "0:01:02"]

1. e4 {[%clk 0:03:00]}  c5 {[%clk 0:02:58]} 2. Nc3 {[%clk 0:02:58]}  Nc6 {[%clk 0:02:57]} 3. Bb5 {[%clk 0:02:58]}  Nd4 {[%clk 0:02:56]} 4. Nf3 {[%clk 0:02:58]}  e6 {[%clk 0:02:55]} 5. Bd3 {[%clk 0:02:57]}  Ne7 {[%clk 0:02:54]} 6. Nxd4 {[%clk 0:02:52]}  cxd4 {[%clk 0:02:55]} 7. O-O {[%clk 0:02:51]}  dxc3 {[%clk 0:02:54]} 8. dxc3 {[%clk 0:02:40]}  d5 {[%clk 0:02:17]} 9. Qe2 {[%clk 0:02:38]}  Bd7 {[%clk 0:02:16]} 10. exd5 {[%clk 0:02:29]}  Nxd5 {[%clk 0:02:16]} 11. f4 {[%clk 0:02:25]}  Be7 {[%clk 0:02:14]} 12. a3 {[%clk 0:02:22]}  O-O {[%clk 0:02:10]} 13. c4 {[%clk 0:02:22]}  Nf6 {[%clk 0:02:09]} 14. Kh1 {[%clk 0:02:21]}  Bc6 {[%clk 0:02:08]} 15. b4 {[%clk 0:02:21]}  b6 {[%clk 0:02:07]} 16. Bb2 {[%clk 0:02:20]}  Re8 {[%clk 0:01:54]} 17. Rae1 {[%clk 0:02:19]}  h6 {[%clk 0:01:30]} 18. h3 {[%clk 0:02:16]}  Nd7 {[%clk 0:01:29]} 19. Kh2 {[%clk 0:02:14]}  Bf6 {[%clk 0:01:29]} 20. Be5 {[%clk 0:01:35]}  Qe7 {[%clk 0:01:27]} 21. Qh5 {[%clk 0:01:30]}  a5 {[%clk 0:01:13]} 22. Re3 {[%clk 0:01:29]}  axb4 {[%clk 0:01:12]} 23. axb4 {[%clk 0:01:28]}  Qxb4 {[%clk 0:01:08]} 24. Rg3 {[%clk 0:01:27]}  Kf8 {[%clk 0:01:08]} 25. c3 {[%clk 0:00:19]}  Qc5 {[%clk 0:01:05]} 26. Re1 {[%clk 0:00:19]}  Ra5 {[%clk 0:01:04]} 27. Qg4 {[%clk 0:00:10]}  Nxe5 {[%clk 0:01:01]} 28. fxe5 {[%clk 0:00:10]}  Bxe5 {[%clk 0:01:02]} 0-1


[Site "https://www.chess.com"]

[Event "Titled Tuesday Blitz February 15 Late 2022"]
[White "Iskusnyh, Sergei"]
[Black "Martinez Alcantara, Jose Eduardo"]
[WhiteFideId "4120027"]
[BlackFideId "3805662"]
[WhiteElo "2492"]
[BlackElo "2690"]
[Result "1/2-1/2"]
[Round "04"]
[TimeControl "180+1"]
[Date "2022.02.15"]
[WhiteClock "0:00:09"]
[BlackClock "0:00:39"]

1. d4 {[%clk 0:03:00]}  Nf6 {[%clk 0:02:56]} 2. c4 {[%clk 0:03:00]}  e6 {[%clk 0:02:56]} 3. g3 {[%clk 0:03:00]}  Bb4+ {[%clk 0:02:57]} 4. Bd2 {[%clk 0:03:00]}  Qe7 {[%clk 0:02:57]} 5. Bg2 {[%clk 0:02:57]}  Bxd2+ {[%clk 0:02:57]} 6. Qxd2 {[%clk 0:02:57]}  d6 {[%clk 0:02:58]} 7. Nc3 {[%clk 0:02:56]}  O-O {[%clk 0:02:56]} 8. e3 {[%clk 0:02:56]}  e5 {[%clk 0:02:56]} 9. Nge2 {[%clk 0:02:56]}  c6 {[%clk 0:02:56]} 10. h3 {[%clk 0:02:54]}  Be6 {[%clk 0:02:54]} 11. b3 {[%clk 0:02:42]}  h5 {[%clk 0:02:51]} 12. O-O {[%clk 0:02:21]}  e4 {[%clk 0:02:38]} 13. Nf4 {[%clk 0:02:11]}  d5 {[%clk 0:02:35]} 14. Rac1 {[%clk 0:02:00]}  Qd7 {[%clk 0:02:20]} 15. Na4 {[%clk 0:01:34]}  b6 {[%clk 0:02:20]} 16. Nc3 {[%clk 0:01:34]}  Bf5 {[%clk 0:02:12]} 17. Qe2 {[%clk 0:01:26]}  g6 {[%clk 0:01:52]} 18. cxd5 {[%clk 0:01:25]}  cxd5 {[%clk 0:01:52]} 19. Qb5 {[%clk 0:01:25]}  Rd8 {[%clk 0:01:49]} 20. Qxd7 {[%clk 0:01:20]}  Rxd7 {[%clk 0:01:50]} 21. f3 {[%clk 0:00:50]}  Na6 {[%clk 0:01:18]} 22. Ncxd5 {[%clk 0:00:47]}  Nxd5 {[%clk 0:01:15]} 23. Nxd5 {[%clk 0:00:46]}  exf3 {[%clk 0:01:15]} 24. Bxf3 {[%clk 0:00:39]}  Kg7 {[%clk 0:01:16]} 25. g4 {[%clk 0:00:38]}  hxg4 {[%clk 0:01:13]} 26. hxg4 {[%clk 0:00:38]}  Be6 {[%clk 0:01:14]} 27. Nf6 {[%clk 0:00:36]}  Rdd8 {[%clk 0:01:10]} 28. Bxa8 {[%clk 0:00:35]}  Rxa8 {[%clk 0:01:11]} 29. g5 {[%clk 0:00:32]}  Nb4 {[%clk 0:01:10]} 30. Rc7 {[%clk 0:00:30]}  Rh8 {[%clk 0:01:08]} 31. Rf2 {[%clk 0:00:28]}  Rh3 {[%clk 0:01:05]} 32. Rh2 {[%clk 0:00:26]}  Rg3+ {[%clk 0:01:06]} 33. Kf2 {[%clk 0:00:19]}  Rxg5 {[%clk 0:01:07]} 34. Ne4 {[%clk 0:00:16]}  Rf5+ {[%clk 0:01:06]} 35. Ke1 {[%clk 0:00:15]}  Nd5 {[%clk 0:00:59]} 36. Rxa7 {[%clk 0:00:14]}  Nxe3 {[%clk 0:00:58]} 37. Nd6 {[%clk 0:00:14]}  Rf4 {[%clk 0:00:52]} 38. Ne8+ {[%clk 0:00:14]}  Kg8 {[%clk 0:00:52]} 39. Nc7 {[%clk 0:00:13]}  Bg4 {[%clk 0:00:36]} 40. Ra8+ {[%clk 0:00:13]}  Kg7 {[%clk 0:00:36]} 41. Ne8+ {[%clk 0:00:14]}  Kg8 {[%clk 0:00:37]} 42. Nf6+ {[%clk 0:00:14]}  Kg7 {[%clk 0:00:38]} 43. Ne8+ {[%clk 0:00:13]}  Kg8 {[%clk 0:00:38]} 44. Nf6+ {[%clk 0:00:09]}  Kg7 {[%clk 0:00:39]} 45. Ne8+ {[%clk 0:00:09]} 1/2-1/2


[Site "https://www.chess.com"]

[Event "Titled Tuesday Blitz February 15 Late 2022"]
[White "Jacobson, Aaron"]
[Black "Lenderman, Aleksandr"]
[WhiteFideId "2089912"]
[BlackFideId "2021285"]
[WhiteElo "2265"]
[BlackElo "2651"]
[Result "0-1"]
[Round "04"]
[TimeControl "180+1"]
[Date "2022.02.15"]
[WhiteClock "0:00:12"]
[BlackClock "0:01:15"]

1. e4 {[%clk 0:03:00]}  d6 {[%clk 0:02:56]} 2. d4 {[%clk 0:03:01]}  Nf6 {[%clk 0:02:55]} 3. Nc3 {[%clk 0:03:02]}  e5 {[%clk 0:02:56]} 4. Nf3 {[%clk 0:03:02]}  Nbd7 {[%clk 0:02:55]} 5. Bc4 {[%clk 0:03:03]}  Be7 {[%clk 0:02:56]} 6. O-O {[%clk 0:03:04]}  O-O {[%clk 0:02:56]} 7. Re1 {[%clk 0:03:04]}  c6 {[%clk 0:02:57]} 8. a4 {[%clk 0:03:05]}  a5 {[%clk 0:02:57]} 9. h3 {[%clk 0:03:06]}  Nb6 {[%clk 0:02:53]} 10. Bb3 {[%clk 0:03:06]}  Nfd7 {[%clk 0:02:50]} 11. dxe5 {[%clk 0:03:06]}  dxe5 {[%clk 0:02:49]} 12. Be3 {[%clk 0:03:07]}  Qc7 {[%clk 0:02:45]} 13. Nd2 {[%clk 0:03:08]}  Nc5 {[%clk 0:02:42]} 14. Qe2 {[%clk 0:03:02]}  Nxb3 {[%clk 0:02:39]} 15. Nxb3 {[%clk 0:03:03]}  Be6 {[%clk 0:02:39]} 16. Nc5 {[%clk 0:03:03]}  Bc4 {[%clk 0:02:37]} 17. Qf3 {[%clk 0:03:01]}  Nd7 {[%clk 0:02:35]} 18. Nxd7 {[%clk 0:02:59]}  Qxd7 {[%clk 0:02:35]} 19. Red1 {[%clk 0:02:59]}  Qc7 {[%clk 0:02:33]} 20. b3 {[%clk 0:02:58]}  Be6 {[%clk 0:02:33]} 21. Ne2 {[%clk 0:02:58]}  Rad8 {[%clk 0:02:30]} 22. Ng3 {[%clk 0:02:58]}  g6 {[%clk 0:02:30]} 23. Bh6 {[%clk 0:02:58]}  Rxd1+ {[%clk 0:02:29]} 24. Rxd1 {[%clk 0:02:58]}  Rd8 {[%clk 0:02:30]} 25. Rxd8+ {[%clk 0:02:56]}  Qxd8 {[%clk 0:02:29]} 26. Nf5 {[%clk 0:02:54]}  Bg5 {[%clk 0:02:28]} 27. Bxg5 {[%clk 0:02:52]}  Qxg5 {[%clk 0:02:29]} 28. Ne3 {[%clk 0:02:46]}  Kf8 {[%clk 0:02:19]} 29. Qd1 {[%clk 0:02:44]}  Bxh3 {[%clk 0:02:16]} 30. Qd6+ {[%clk 0:02:44]}  Kg7 {[%clk 0:02:16]} 31. Qc7 {[%clk 0:02:39]}  Be6 {[%clk 0:02:10]} 32. Qxb7 {[%clk 0:02:36]}  h5 {[%clk 0:01:53]} 33. Qxc6 {[%clk 0:02:36]}  h4 {[%clk 0:01:51]} 34. Qd6 {[%clk 0:01:59]}  Qf4 {[%clk 0:01:44]} 35. Qd3 {[%clk 0:01:42]}  g5 {[%clk 0:01:35]} 36. Nd5 {[%clk 0:01:33]}  Qc1+ {[%clk 0:01:34]} 37. Kh2 {[%clk 0:01:32]}  g4 {[%clk 0:01:33]} 38. Qe3 {[%clk 0:01:17]}  Qxe3 {[%clk 0:01:31]} 39. Nxe3 {[%clk 0:01:14]}  Kf6 {[%clk 0:01:30]} 40. Nc4 {[%clk 0:00:58]}  Bxc4 {[%clk 0:01:30]} 41. bxc4 {[%clk 0:00:59]}  Ke6 {[%clk 0:01:30]} 42. f3 {[%clk 0:01:00]}  gxf3 {[%clk 0:01:28]} 43. gxf3 {[%clk 0:01:00]}  Kd6 {[%clk 0:01:29]} 44. Kh3 {[%clk 0:01:00]}  Kc5 {[%clk 0:01:29]} 45. Kxh4 {[%clk 0:01:01]}  Kxc4 {[%clk 0:01:25]} 46. Kg5 {[%clk 0:01:02]}  Kb4 {[%clk 0:01:25]} 47. Kf6 {[%clk 0:00:56]}  Kxa4 {[%clk 0:01:26]} 48. Kxe5 {[%clk 0:00:43]}  Kb4 {[%clk 0:01:25]} 49. Kf6 {[%clk 0:00:35]}  a4 {[%clk 0:01:25]} 50. Kxf7 {[%clk 0:00:36]}  a3 {[%clk 0:01:25]} 51. e5 {[%clk 0:00:37]}  a2 {[%clk 0:01:25]} 52. e6 {[%clk 0:00:37]}  a1=Q {[%clk 0:01:26]} 53. e7 {[%clk 0:00:38]}  Qa7 {[%clk 0:01:19]} 54. f4 {[%clk 0:00:18]}  Qd7 {[%clk 0:01:18]} 55. Kf8 {[%clk 0:00:12]}  Qf5+ {[%clk 0:01:16]} 56. Kg7 {[%clk 0:00:12]}  Qe6 {[%clk 0:01:16]} 57. Kf8 {[%clk 0:00:12]}  Qf6+ {[%clk 0:01:16]} 58. Kg8 {[%clk 0:00:12]}  Qxe7 {[%clk 0:01:15]} 0-1


[Site "https://www.chess.com"]